fUST/lending_fUST_20260203
["ID","MTS","AMOUNT","RATE_DAILY","PERIOD"]
[404424442,1770130334428,887.99846444,0.00014368,2]
[404424443,1770130334480,1000.0,0.00013821,2]
[404424444,1770130334575,159.83643979,0.00013273,2]
[404424445,1770130334860,526.86363123,0.00013699,2]
[404424446,1770130335098,504.08949317,0.00013699,2]
[404424447,1770130335157,500.0,0.00013699,2]
[404424448,1770130335220,2000.0,0.00015342,2]
[404424449,1770130335412,254.75657362,0.0001589,2]
[404424450,1770130335435,2245.24342638,0.0001589,2]
[404424451,1770130335474,1000.0,0.00014247,2]
[404424452,1770130335542,1500.0,0.00014795,2]
[404424454,1770130336509,-119.56064219,0.00016011,2]
[404424455,1770130336540,-96.60020117,0.00016012,2]
[404424456,1770130336567,-187.88248611,0.00016012,2]
[404424457,1770130342073,-191.43713455,0.00016012,2]
[404424458,1770130345167,-377.16197359,0.00016012,2]
[404424459,1770130349594,-164.72,0.00016,2]
[404424460,1770130349614,-63.30247279,0.00016012,2]
[404424461,1770130351709,-183.37336798,0.00016012,2]
[404424463,1770130357171,-191.43713455,0.00015852,2]
[404424464,1770130357193,-176.21284786,0.00015945,2]
[404424465,1770130360228,-214.10871006,0.00015945,2]
[404424466,1770130365149,-204.69093765,0.00015945,2]
[404424467,1770130367254,-380.37506151,0.00015945,2]
[404424468,1770130373121,-416.79790601,0.00015945,2]
[404424469,1770130376806,-3108.07379326,0.00015945,2]
[404424470,1770130376827,-696.08247755,0.00016012,2]
[404424482,1770130381515,-326.46175366,0.00015852,2]
[404424483,1770130381836,-472.71295556,0.00015852,2]
[404424485,1770130383039,-227.31540039,0.00016012,2]
[404424486,1770130384313,309.03603296,0.00013273,2]
[404424487,1770130384341,500.0,0.00013699,2]
[404424488,1770130384374,500.0,0.00013273,2]
[404424489,1770130384400,681.54300674,0.00014247,2]
[404424490,1770130384428,1000.0,0.00013821,2]
[404424491,1770130384456,209.79407885,0.00014368,2]
[404424492,1770130384572,501.82473873,0.00013273,2]
[404424493,1770130384602,500.0,0.00013273,2]
[404424496,1770130387763,500.0,0.00013699,2]
[404424497,1770130387823,1044.87296008,0.00014247,2]
[404424498,1770130387903,288.45033361,0.00013699,2]
[404424499,1770130388209,1502.01915111,0.00014795,2]
[404424500,1770130388241,500.0,0.00013699,2]
[404424501,1770130388285,1000.0,0.00014247,2]
[404424502,1770130389425,-224.19640414,0.00016011,2]
[404424513,1770130392121,17.0437868,0.00013273,2]
[404424514,1770130392143,391.64923437,0.00013273,2]
[404424518,1770130392620,-75.80359586,0.00016011,2]
[404424519,1770130392641,-112.39010177,0.00016012,2]
[404424522,1770130397120,-239.97383337,0.00016012,2]
[404424523,1770130398108,1000.0,0.00013821,2]
[404424524,1770130398160,500.0,0.00013273,2]
[404424525,1770130398211,1500.0,0.00014368,2]
[404424527,1770130398291,2000.0,0.00014916,2]
[404424528,1770130398318,2500.0,0.00015464,2]
[404424529,1770130398581,-296.83422438,0.00016012,2]
[404424530,1770130398610,500.0,0.00013273,2]
[404424531,1770130398644,1000.0,0.00013821,2]
[404424532,1770130398696,608.36076563,0.00014368,2]
[404424533,1770130398719,891.63923437,0.00014368,2]
[404424534,1770130398751,2500.0,0.00015464,2]
[404424535,1770130398918,2000.0,0.00014916,2]
[404424536,1770130400893,500.0,0.00013699,2]
[404424537,1770130400951,1000.0,0.00014247,2]
[404424539,1770130401063,1500.0,0.00014795,2]
[404424540,1770130401162,2000.0,0.00015342,2]
[404424541,1770130401269,-234.73007421,0.0001589,2]
[404424542,1770130401299,600.0,0.00014221,2]
[404424543,1770130401357,900.0,0.00014768,2]
[404424544,1770130401415,1200.0,0.00015316,2]
[404424545,1770130401503,300.0,0.00013673,2]
[404424547,1770130406011,-178.66155229,0.00015852,2]
[404424550,1770130415221,-1324.31376128,0.00015852,2]
[404424552,1770130424392,234.73007421,0.00015852,2]
[404424553,1770130440950,5000.0,0.00015858,2]
[404424557,1770130444334,613.6719324,0.00013699,2]
[404424558,1770130444518,158.04639612,0.00013699,2]
[404424559,1770130446048,-160.50111352,0.00015858,2]
[404424560,1770130447314,500.0,0.00013273,2]
[404424561,1770130447343,1500.0,0.00014368,2]
[404424562,1770130447386,1000.0,0.00013821,2]
[404424563,1770130447493,2000.0,0.00014916,2]
[404424564,1770130447553,861.13333414,0.00015464,2]
[404424565,1770130448766,178.66155229,0.00015858,2]
[404424566,1770130451921,500.19982092,0.00013273,2]
[404424567,1770130453977,500.0,0.00013273,2]
[404424568,1770130454028,1500.0,0.00014368,2]
[404424569,1770130454105,1139.01306561,0.00015464,2]
[404424570,1770130454131,1360.98693439,0.00015464,2]
[404424571,1770130454160,1000.0,0.00013821,2]
[404424572,1770130454193,2000.0,0.00014916,2]
[404424573,1770130455671,-178.02466455,0.00015864,2]
[404424574,1770130455694,-59.29270621,0.0001589,2]
[404424575,1770130457089,-193.1485395,0.0001589,2]
[404424576,1770130457594,500.0,0.00013699,2]
[404424577,1770130457647,1000.0,0.00014247,2]
[404424578,1770130457702,1500.0,0.00014795,2]
[404424579,1770130457856,2000.0,0.00015342,2]
[404424581,1770130459740,-193.81392878,0.0001589,2]
[404424582,1770130461805,-266.30773593,0.0001589,2]
[404424583,1770130463797,-188.2712893,0.0001589,2]
[404424588,1770130469244,-377.04845098,0.00015732,2]
[404424589,1770130471810,-306.18607122,0.00015732,2]
[404424590,1770130472431,1875.64019808,0.0001545,2]
[404424591,1770130476732,-251.09310149,0.00015732,2]
[404424592,1770130479863,-4065.67237631,0.00015732,2]
[404424593,1770130479888,-508.3023,0.0001589,2]
[404424594,1770130485430,-562.14427197,0.0001589,2]
[404424596,1770130487716,1868.66524738,0.00015732,2]
[404424597,1770130487739,3131.33475262,0.00015732,2]
[404424598,1770130488063,-223.1686802,0.0001589,2]
[404424599,1770130492849,-70.8204739,0.0001589,2]
[404424600,1770130492872,-220.73090711,0.0001589,2]
[404424601,1770130494264,-315.09066328,0.0001589,2]
[404424602,1770130495508,2142.44580589,0.00015732,2]
[404424603,1770130495757,-251.86984637,0.0001589,2]
[404424606,1770130502592,-194.48703131,0.0001589,2]
[404424607,1770130503420,201.78197965,0.00015068,2]
[404424608,1770130503448,305.19550882,0.00013699,2]
[404424609,1770130503476,500.0,0.00013273,2]
[404424610,1770130504041,500.0,0.00013699,2]
[404424611,1770130504092,1000.0,0.00014247,2]
[404424612,1770130504123,150.0,0.00013673,2]
[404424613,1770130504149,2000.0,0.00015342,2]
[404424614,1770130504261,300.0,0.00014221,2]
[404424615,1770130504292,1500.0,0.00014795,2]
[404424616,1770130504320,300.16676177,0.00014768,2]
[404424617,1770130504349,-579.57397846,0.0001589,2]
[404424618,1770130504481,500.0,0.00013699,2]
[404424619,1770130504514,500.0,0.00013699,2]
[404424620,1770130504555,1000.0,0.00014247,2]
[404424621,1770130504587,1000.0,0.00014247,2]
[404424622,1770130504616,242.86574976,0.00014795,2]
[404424623,1770130504640,413.30682115,0.00014795,2]
[404424624,1770130504671,1011.10142396,0.00014795,2]
[404424625,1770130505436,298.70124785,0.00013699,2]
[404424626,1770130505594,500.0,0.00013699,2]
[404424627,1770130505630,1000.0,0.00014247,2]
[404424628,1770130505686,2000.0,0.00015342,2]
[404424629,1770130505812,1500.0,0.00014795,2]
[404424630,1770130506745,500.0,0.00013273,2]
[404424631,1770130506793,1000.0,0.00013821,2]
[404424632,1770130506849,500.0,0.00014368,2]
[404424633,1770130507073,205.1489348,0.00015212,2]
[404424634,1770130508055,934.85355421,0.00014247,2]
[404424635,1770130508119,136.89801803,0.00013699,2]
[404424636,1770130508144,363.10198197,0.00013699,2]
[404424637,1770130510444,-813.00955192,0.0001589,2]
[404424638,1770130511985,-214.97046311,0.00015732,2]
[404424639,1770130513584,-4785.02953689,0.00015732,2]
[404424640,1770130516580,429.95092622,0.00013273,2]
[404424641,1770130516605,70.04907378,0.00013273,2]
[404424642,1770130516634,1500.0,0.00014368,2]
[404424643,1770130516689,1000.0,0.00013821,2]
[404424644,1770130516740,2000.0,0.00014916,2]
[404424645,1770130516786,826.84602382,0.00015464,2]
[404424646,1770130517131,500.0,0.00013273,2]
[404424647,1770130517238,1000.0,0.00013821,2]
[404424648,1770130517303,1500.0,0.00014368,2]
[404424649,1770130517348,1603.1149024,0.00014916,2]
[404424650,1770130517372,159.42092781,0.00014916,2]
[404424651,1770130518664,-125.23802155,0.0001589,2]
[404424652,1770130518687,-233.33723801,0.0001589,2]
[404424653,1770130518720,500.0,0.00013699,2]
[404424654,1770130518780,1000.0,0.00014247,2]
[404424655,1770130518822,500.51440333,0.00013699,2]
[404424656,1770130518925,1500.0,0.00014795,2]
[404424657,1770130518992,2000.0,0.00015342,2]
[404424658,1770130519168,500.0,0.00013699,2]
[404424659,1770130519201,500.0,0.00013699,2]
[404424660,1770130519317,1000.0,0.00014247,2]
[404424661,1770130519348,2340.07466886,0.00015732,2]
[404424662,1770130519372,28.92686559,0.00015732,2]
[404424663,1770130526242,-279.7754916,0.0001589,2]
[404424664,1770130534535,-389.13960131,0.0001589,2]
[404424665,1770130535204,5000.0,0.00015732,2]
[404424666,1770130542190,-174.89590963,0.0001589,2]
[404424667,1770130543131,1027.49035247,0.00015732,2]
[404424668,1770130550460,-168.7972843,0.0001589,2]
[404424669,1770130551943,-327.88325505,0.0001589,2]
[404424670,1770130558399,-152.48,0.0001589,2]
[404424671,1770130560883,-237.9117782,0.00015732,2]
[404424672,1770130564099,160.36743751,0.00013699,2]
[404424673,1770130565880,-245.1,0.00015732,2]
[404424674,1770130566346,500.0,0.00013699,2]
[404424675,1770130566383,1000.0,0.00013821,2]
[404424676,1770130566423,500.0,0.00014247,2]
[404424677,1770130566464,500.0,0.00013273,2]
[404424678,1770130567721,500.31997124,0.00013273,2]
[404424679,1770130568119,-174.89590963,0.00015575,2]
[404424680,1770130569135,-458.64,0.00015732,2]
[404424681,1770130569458,500.0,0.00013273,2]
[404424682,1770130570847,543.83551273,0.00013699,2]
[404424683,1770130573275,503.70808855,0.00013273,2]
[404424684,1770130573723,500.0,0.00013699,2]
[404424685,1770130573799,1000.0,0.00014247,2]
[404424686,1770130573877,318.37450418,0.00014795,2]
[404424687,1770130574121,-229.4264115,0.00015732,2]
[404424688,1770130574248,500.0,0.00013699,2]
[404424689,1770130574304,158.68078088,0.00014247,2]
[404424690,1770130574553,500.0,0.00013273,2]
[404424691,1770130574610,1000.0,0.00013821,2]
[404424692,1770130574637,239.94552144,0.00013273,2]
[404424693,1770130574669,501.39030922,0.00014368,2]
[404424694,1770130575254,500.0,0.00013699,2]
[404424695,1770130575327,500.0,0.00013273,2]
[404424696,1770130575650,500.0,0.00013273,2]
[404424697,1770130575705,1000.0,0.00013821,2]
[404424698,1770130575758,884.28346374,0.00014368,2]
[404424699,1770130575782,615.71653626,0.00014368,2]
[404424700,1770130575821,2000.0,0.00014916,2]
[404424701,1770130575851,500.0,0.00013699,2]
[404424702,1770130575883,2500.0,0.00015464,2]
[404424703,1770130576971,500.0,0.00013273,2]
[404424704,1770130577612,-160.9282218,0.00015732,2]
[404424705,1770130578193,500.0,0.00013699,2]
[404424706,1770130578247,1000.0,0.00014247,2]
[404424707,1770130578301,1500.0,0.00014795,2]
[404424708,1770130578356,884.29346374,0.00015342,2]
[404424709,1770130578381,1115.70653626,0.00015342,2]
[404424710,1770130598820,-1094.0946333,0.00015575,2]
[404424713,1770130623459,500.0,0.00013699,2]
[404424714,1770130623487,160.33458198,0.00013699,2]
[404424715,1770130623541,833.29847338,0.00014247,2]
[404424716,1770130623791,500.0,0.00013699,2]
[404424717,1770130625220,320.39327364,0.00013273,2]
[404424718,1770130625426,500.0,0.00013699,2]
[404424719,1770130625479,320.12567473,0.00014795,2]
[404424720,1770130625549,1000.0,0.00014247,2]
[404424721,1770130625711,500.0,0.00013699,2]
[404424722,1770130625774,237.12560796,0.00014247,2]
[404424723,1770130625986,500.0,0.00013273,2]
[404424724,1770130626096,1000.0,0.00013821,2]
[404424725,1770130626154,1500.0,0.00014368,2]
[404424726,1770130626194,2000.0,0.00014916,2]
[404424727,1770130626647,128.73238831,0.00013273,2]
[404424728,1770130626672,371.26761169,0.00013273,2]
[404424729,1770130626749,1000.0,0.00013821,2]
[404424730,1770130626815,1500.0,0.00014368,2]
[404424731,1770130626842,2000.0,0.00014916,2]
[404424732,1770130626869,500.0,0.00013273,2]
[404424733,1770130626903,1000.0,0.00013821,2]
[404424734,1770130626943,1500.0,0.00014368,2]
[404424735,1770130626970,404.90581323,0.00014916,2]
[404424736,1770130628065,500.0,0.00013273,2]
[404424737,1770130629942,501.32902716,0.00013699,2]
[404424738,1770130630922,500.0,0.00013273,2]
[404424739,1770130630985,1000.0,0.00013821,2]
[404424740,1770130634342,500.0,0.00013699,2]
[404424741,1770130634399,476.44948864,0.00014247,2]
[404424742,1770130637557,500.0,0.00013273,2]
[404424743,1770130637606,1000.0,0.00013821,2]
[404424744,1770130637658,1000.0,0.00014368,2]
[404424745,1770130638070,500.0,0.00013699,2]
[404424746,1770130639102,500.0,0.00013273,2]
[404424747,1770130639145,1000.0,0.00013821,2]
[404424748,1770130639195,1500.0,0.00014368,2]
[404424749,1770130639251,1022.2314842,0.00014916,2]
[404424750,1770130639275,977.7685158,0.00014916,2]
[404424751,1770130639419,500.0,0.00013273,2]
[404424752,1770130639593,500.0,0.00013699,2]
[404424753,1770130639632,538.71956343,0.00013699,2]
[404424754,1770130639660,1000.0,0.00014247,2]
[404424755,1770130639703,1500.0,0.00014795,2]
[404424756,1770130639758,300.0,0.00013673,2]
[404424757,1770130639785,2000.0,0.00015342,2]
[404424758,1770130639811,600.0,0.00014221,2]
[404424759,1770130639863,900.0,0.00014768,2]
[404424760,1770130639917,900.0,0.00015316,2]
[404424761,1770130684532,500.0,0.00013699,2]
[404424762,1770130684563,1000.0,0.00014247,2]
[404424763,1770130684615,1507.54935569,0.00014795,2]
[404424764,1770130684819,500.0,0.00013699,2]
[404424765,1770130684873,614.83605073,0.00014247,2]
[404424766,1770130686451,299.9295039,0.00013699,2]
[404424767,1770130686514,500.0,0.00013273,2]
[404424768,1770130686560,1000.0,0.00013821,2]
[404424769,1770130686614,503.51677705,0.00014368,2]
[404424770,1770130686874,500.0,0.00013273,2]
[404424771,1770130686916,976.5795745,0.00013821,2]
[404424772,1770130687214,500.0,0.00013273,2]
[404424773,1770130687243,500.0,0.00013273,2]
[404424774,1770130687271,1000.0,0.00013821,2]
[404424775,1770130687300,97.59873813,0.00013821,2]
[404424776,1770130687324,902.40126187,0.00013821,2]
[404424777,1770130687353,1500.0,0.00014368,2]
[404424778,1770130687382,1500.0,0.00014368,2]
[404424779,1770130687412,1000.0,0.00013973,2]
[404424780,1770130687444,2000.0,0.00014916,2]
[404424781,1770130687474,461.77578399,0.00013273,2]
[404424782,1770130687504,1000.79142467,0.00014384,2]
[404424783,1770130687540,1130.1732784,0.00014916,2]
[404424784,1770130687582,500.0,0.00013699,2]
[404424785,1770130692230,4.86825107,0.00013273,2]
[404424786,1770130692255,483.63827475,0.00013273,2]
[404424787,1770130695300,500.0,0.00013699,2]
[404424788,1770130695978,286.37602055,0.00013273,2]
[404424789,1770130697455,500.0,0.00013273,2]
[404424790,1770130697504,1000.0,0.00013821,2]
[404424791,1770130697556,1500.0,0.00014368,2]
[404424792,1770130697615,2000.0,0.00014916,2]
[404424793,1770130697994,500.0,0.00013699,2]
[404424794,1770130698049,1000.0,0.00014247,2]
[404424795,1770130698138,501.6271235,0.00014795,2]
[404424796,1770130698451,500.0,0.00013699,2]
[404424797,1770130698503,1000.0,0.00014247,2]
[404424798,1770130698552,228.3685812,0.00014795,2]
[404424799,1770130698576,1271.6314188,0.00014795,2]
[404424821,1770130703840,-2000.0,0.00015342,2]
[404424822,1770130703872,-300.0,0.00015463,2]
[404424824,1770130705296,5400.01,0.00014865,2]
[404424825,1770130705322,8728.3785812,0.00014865,2]
[404424826,1770130705349,2567.0964517,0.00014865,2]
[404424831,1770130722067,-247.09,0.000153,2]
[404424839,1770130743987,500.0,0.00013699,2]
[404424840,1770130744016,265.043341,0.00013273,2]
[404424841,1770130744044,390.80638575,0.00013821,2]
[404424842,1770130744072,500.0,0.00013273,2]
[404424843,1770130744099,1000.0,0.00014247,2]
[404424845,1770130746063,507.57912091,0.00013699,2]
[404424846,1770130746312,500.0,0.00013699,2]
[404424847,1770130746365,500.45037706,0.00014247,2]
[404424848,1770130746393,1006.1641996,0.00014247,2]
[404424849,1770130746422,500.0,0.00013699,2]
[404424850,1770130746451,462.30366485,0.00013699,2]
[404424851,1770130746486,500.0,0.00013699,2]
[404424852,1770130746538,1000.0,0.00014247,2]
[404424853,1770130746588,500.0,0.00013273,2]
[404424854,1770130746618,500.0,0.00013699,2]
[404424855,1770130746651,1000.0,0.00013821,2]
[404424856,1770130746687,367.66291083,0.00014247,2]
[404424857,1770130746709,35.01235621,0.00014247,2]
[404424858,1770130746744,1500.0,0.00014368,2]
[404424859,1770130746849,-156.75318363,0.00014795,2]
[404424861,1770130748356,-1.55301139,0.00014795,2]
[404424862,1770130748380,-365.2019816,0.00014795,2]
[404424864,1770130751553,-219.39605716,0.00014795,2]
[404424865,1770130751869,619.58988389,0.00013273,2]
[404424866,1770130753271,-353.84901916,0.00014795,2]
[404424869,1770130758596,-315.69906075,0.00014647,2]
[404424873,1770130760606,500.0,0.00013699,2]
[404424874,1770130760655,1000.0,0.00014247,2]
[404424875,1770130760891,-220.32155596,0.00014647,2]
[404424876,1770130760949,1000.0,0.00013821,2]
[404424877,1770130761034,1061.22050956,0.00014368,2]
[404424878,1770130761115,500.0,0.00013273,2]
[404424879,1770130761401,300.0,0.00013673,2]
[404424881,1770130761872,500.0,0.00013699,2]
[404424882,1770130761920,1000.0,0.00014247,2]
[404424883,1770130762078,-4463.97938329,0.00014647,2]
[404424884,1770130762819,-191.28207301,0.00014731,2]
[404424896,1770130767022,-198.0,0.00014731,2]
[404424900,1770130769330,-317.26258357,0.00014731,2]
[404424902,1770130773095,-323.77736941,0.00014731,2]
[404424904,1770130774344,-8969.67797401,0.00014731,2]
[404424905,1770130774369,-561.55294208,0.00014795,2]
[404424906,1770130774392,-1500.0,0.00014795,2]
[404424907,1770130774417,-1500.0,0.00014795,2]
[404424908,1770130774442,-2000.0,0.00014916,2]
[404424912,1770130775190,-2000.0,0.00015342,2]
[404424913,1770130775213,-253.06435971,0.00015342,2]
[404424914,1770130775236,-2000.0,0.00015342,2]
[404424915,1770130775261,-300.0,0.00015463,2]
[404424916,1770130775286,-2500.0,0.00015464,2]
[404424917,1770130775310,-2500.0,0.00015464,2]
[404424918,1770130775335,-2500.0,0.00015464,2]
[404424919,1770130775358,-2500.0,0.00015464,2]
[404424920,1770130775382,-2500.0,0.00015464,2]
[404424924,1770130778058,5000.0,0.00015189,2]
[404424930,1770130779211,-157.29109125,0.00015598,2]
[404424931,1770130779243,-300.0,0.00015889,2]
[404424932,1770130779274,-773.6912201,0.0001589,2]
[404424933,1770130779311,-1143.930988,0.0001589,2]
[404424935,1770130779347,-1075.28022548,0.0001589,2]
[404424936,1770130779378,-2500.0,0.0001589,2]
[404424937,1770130779409,-702.23623019,0.0001589,2]
[404424938,1770130779442,-445.9756923,0.00015907,2]
[404424940,1770130779474,-150.05783255,0.00015907,2]
[404424941,1770130779504,-17751.53672013,0.00015907,2]
[404424952,1770130781712,-25000.0,0.00015907,2]
[404424953,1770130782878,-7248.46327987,0.00015907,2]
[404424954,1770130782910,-8397.27187814,0.00015911,2]
[404424970,1770130796106,9354.26484199,0.00015342,2]
[404424971,1770130796130,645.73515801,0.00015342,2]
[404424972,1770130796213,10000.0,0.00015442,2]
[404424973,1770130796316,6339.91,0.00015542,2]
[404424976,1770130801377,5000.0,0.00016,2]
[404424982,1770130804314,480.36325505,0.00015907,2]
[404424983,1770130804471,500.56709487,0.00013699,2]
[404424984,1770130804647,161.11951336,0.00013699,2]
[404424986,1770130807815,500.0,0.00013699,2]
[404424987,1770130807871,1000.33977898,0.00014247,2]
[404424988,1770130807993,371.96519973,0.00013273,2]
[404424989,1770130808019,128.03480027,0.00013273,2]
[404424990,1770130808049,500.0,0.00013699,2]
[404424992,1770130808083,2000.0,0.00014916,2]
[404424993,1770130808112,500.0,0.00014247,2]
[404424994,1770130808163,2500.0,0.00015464,2]
[404424995,1770130808250,1000.0,0.00013821,2]
[404424996,1770130808635,1500.0,0.00014368,2]
[404424998,1770130811805,500.0,0.00013699,2]
[404425001,1770130818641,500.0,0.00013699,2]
[404425002,1770130818887,500.0,0.00013273,2]
[404425003,1770130818918,500.82078053,0.00013699,2]
[404425004,1770130818954,314.03047916,0.00013821,2]
[404425006,1770130820045,500.0,0.00013699,2]
[404425007,1770130820091,500.0,0.00014247,2]
[404425026,1770130864031,500.0,0.00013273,2]
[404425027,1770130864060,500.0,0.00014368,2]
[404425028,1770130864092,1000.0,0.00013821,2]
[404425029,1770130864121,500.0,0.00013699,2]
[404425030,1770130864455,500.36497011,0.00013699,2]
[404425031,1770130864484,500.0,0.00013699,2]
[404425032,1770130864592,500.0,0.00013273,2]
[404425033,1770130864818,500.0,0.00013699,2]
[404425034,1770130864864,904.50815283,0.00014368,2]
[404425035,1770130864898,500.74038109,0.00014247,2]
[404425036,1770130864928,1000.0,0.00013821,2]
[404425037,1770130864964,500.0,0.00013273,2]
[404425040,1770130867206,500.0,0.00013699,2]
[404425041,1770130867236,500.88347932,0.00013699,2]
[404425042,1770130867270,1000.0,0.00014247,2]
[404425043,1770130867389,500.0,0.00014795,2]
[404425044,1770130867418,500.0,0.00013273,2]
[404425045,1770130867451,1000.0,0.00013821,2]
[404425046,1770130867480,589.76428025,0.00013699,2]
[404425047,1770130867510,1500.0,0.00014368,2]
[404425048,1770130867538,60.85267644,0.00013273,2]
[404425049,1770130867562,156.8904037,0.00013273,2]
[404425050,1770130867604,2000.0,0.00014916,2]
[404425051,1770130867764,500.0,0.00013699,2]
[404425052,1770130867820,171.30504098,0.00014795,2]
[404425053,1770130867880,1000.0,0.00014247,2]
[404425054,1770130868144,500.0,0.00013699,2]
[404425055,1770130868192,1000.0,0.00014247,2]
[404425056,1770130868260,1115.53409542,0.00014795,2]
[404425062,1770130881773,507.49218995,0.00013699,2]
[404425064,1770130882248,500.0,0.00013699,2]
[404425065,1770130882324,1000.0,0.00014247,2]
[404425066,1770130882368,879.85129055,0.00014795,2]
[404425145,1770130924154,500.0,0.00013699,2]
[404425148,1770130927636,500.0,0.00013699,2]
[404425149,1770130927685,1000.0,0.00014247,2]
[404425150,1770130927738,501.61509767,0.00014795,2]
[404425152,1770130928237,500.0,0.00013273,2]
[404425153,1770130928268,1002.08830779,0.00014247,2]
[404425154,1770130928300,1000.0,0.00013821,2]
[404425155,1770130928345,1500.0,0.00014368,2]
[404425156,1770130928380,500.0,0.00013699,2]
[404425157,1770130928412,108.96311404,0.00014916,2]
[404425158,1770130928441,1891.03688596,0.00014916,2]
[404425159,1770130928835,422.13878715,0.00013699,2]
[404425173,1770130980556,-2504.27012002,0.00015464,2]
[404425174,1770130980576,-2500.0,0.00015464,2]
[404425175,1770130980596,-975.1797845,0.00015583,2]
[404425176,1770130980618,-386.39229579,0.00015692,2]
[404425177,1770130980645,-5000.0,0.00015851,2]
[404425178,1770130980669,-300.0,0.00015905,2]
[404425179,1770130980694,-500.0,0.00015906,2]
[404425180,1770130980716,-500.0,0.00015906,2]
[404425181,1770130980736,-500.0,0.00015906,2]
[404425182,1770130980756,-500.0,0.00015906,2]
[404425183,1770130980776,-500.0,0.00015906,2]
[404425184,1770130980797,-500.0,0.00015906,2]
[404425185,1770130980818,-500.0,0.00015906,2]
[404425186,1770130980838,-457.890402,0.00015906,2]
[404425187,1770130980859,-331.92035664,0.00015906,2]
[404425188,1770130980880,-278.45820792,0.00015906,2]
[404425189,1770130980902,-808.87502127,0.00015906,2]
[404425190,1770130980922,-527.49643929,0.00015906,2]
[404425192,1770130983359,287.71384729,0.00013699,2]
[404425193,1770130983468,500.0,0.00013699,2]
[404425194,1770130983518,1091.88014411,0.00014247,2]
[404425195,1770130983738,368.32499889,0.00013699,2]
[404425197,1770130985761,150.05714727,0.00015645,2]
[404425198,1770130985813,500.0,0.00013699,2]
[404425199,1770130985843,784.76215271,0.00014247,2]
[404425200,1770130985880,500.0,0.00013273,2]
[404425201,1770130985914,1353.93438635,0.00015464,2]
[404425202,1770130985959,1000.0,0.00013821,2]
[404425203,1770130986013,2000.0,0.00014916,2]
[404425204,1770130986038,500.0,0.00013699,2]
[404425205,1770130986068,1500.0,0.00014368,2]
[404425207,1770130986922,1000.0,0.00013821,2]
[404425208,1770130986957,500.0,0.00013273,2]
[404425209,1770130986986,1500.0,0.00014368,2]
[404425210,1770130987781,1000.0,0.00014916,2]
[404425211,1770130990645,500.0,0.00013273,2]
[404425239,1770130998675,5000.0,0.00016,2]
[404425240,1770131000889,-500.0,0.0001601,2]
[404425241,1770131000919,-300.0,0.0001601,2]
[404425242,1770131000939,-300.0,0.00016011,2]
[404425243,1770131000964,-1200.0,0.00016011,2]
[404425244,1770131000985,-652.0,0.00016011,2]
[404425245,1770131001006,-330.299,0.00016011,2]
[404425246,1770131001027,-344.65656401,0.00016011,2]
[404425247,1770131001046,-50000.0,0.00016012,2]
[404425248,1770131001066,-3000.0,0.00016012,2]
[404425249,1770131001085,-1663.32996403,0.00016012,2]
[404425250,1770131001119,-984.93167027,0.00016012,2]